[Event "Polish Youth Ekstraliga 2022"]
[Site "Lublin"]
[Date "2022.06.26"]
[Round "2.23"]
[White "Goraj, Barbara"]
[Black "Rejniak, Zuzanna"]
[Result "1-0"]
[ECO "C41"]
[WhiteElo "2035"]
[BlackElo "1804"]
[Annotator "NA RC"]
[PlyCount "73"]
[EventDate "2022.06.24"]
[EventType "team-tourn"]
[EventCountry "POL"]
[SourceTitle "playchess.com"]
[Source "ChessBase"]
[SourceQuality "1"]
[TimeControl "40/5400+30:1800+30"]

1. e4 {[%emt 0:00:04]} d6 {[%emt 0:00:18]} 2. d4 {[%emt 0:00:30]} Nf6 {[%emt 0:00:06]} 3. Nc3 {[%emt 0:00:39]} e5 {[%emt 0:00:08]} 4. Nf3 {[%emt 0:01:01]} Nbd7 {[%emt 0:00:06]} 5. Bc4 {[%emt 0:02:26]} Be7 {[%emt 0:00:07]} 6. O-O {[%emt 0:00:30]} O-O {[%emt 0:00:13]} 7. a4 {[%emt 0:01:28]} a6 {[%emt 0:00:17]} 8. h3 {[%emt 0:02:37]} b6 {[%emt 0:01:06]} 9. dxe5 {[%emt 0:14:57]} Nxe5 {[%emt 0:05:01]} 10. Bb3 {[%emt 0:07:26]} Bb7 {[%emt 0:04:15]} 11. Re1 {[%emt 0:00:43]} Nxf3+ {[%emt 0:13:05]} 12. Qxf3 {[%emt 0:00:14]} b5 {[%emt 0:01:41]} 13. Bd2 {[%emt 0:11:20]} Bc6 {[%emt 0:12:08]} 14. Qd3 {[%emt 0:02:57]} Nd7 {[%emt 0:14:51]} 15. Be3 {[%emt 0:06:29]} Nc5 {[%emt 0:14:20]} 16. Bxc5 {[%emt 0:01:06]} dxc5 {[%emt 0:00:19]} 17. Bd5 {[%emt 0:03:30]} Bxd5 {[%emt 0:01:25]} 18. exd5 {[%emt 0:02:53]} c4 {[%emt 0:02:49]} 19. Qf3 {[%emt 0:08:50]} Bb4 {[%emt 0:02:14]} 20. axb5 {[%emt 0:07:15]} axb5 {[%emt 0:05:12]} 21. Rxa8 {[%emt 0:01:23]} Qxa8 {[%emt 0:00:04]} 22. Rd1 {[%emt 0:00:11]} Bxc3 {[%emt 0:00:21]} 23. Qxc3 {[%emt 0:00:25]} Rd8 {[%emt 0:03:20]} 24. Qe5 {[%emt 0:03:21]} Rd6 {[%emt 0:01:13]} 25. Rd4 {[%emt 0:04:05]} Qd8 {[%emt 0:09:25]} 26. c3 {[%emt 0:00:42]} Qd7 {[%emt 0:05:54]} 27. h4 {[%emt 0:01:16]} Ra6 {[%emt 0:01:54]} 28. g3 {[%emt 0:02:00]} h6 {[%emt 0:01:03]} 29. Kg2 {[%emt 0:01:44]} Ra2 {[%emt 0:01:06]} 30. d6 {[%emt 0:03:32]} cxd6 {[%emt 0:00:48]} 31. Rxd6 {[%emt 0:01:17]} Qb7+ {[%emt 0:00:01]} 32. Kh2 {[%emt 0:05:34]} Rxb2 33. Rd8+ {[%emt 0:00:41]} Kh7 {[%emt 0:01:08]} 34. Qf5+ {[%emt 0:00:12]} g6 {[%emt 0:00:08]} 35. Qf6 {[%emt 0:00:12]} Rxf2+ {[%emt 0:00:17]} 36. Qxf2 {[%emt 0:00:07]} Qe7 {[%emt 0:00:03]} 37. Ra8 {[%emt 0:00:56]} 1-0

[Event "Polish Youth Ekstraliga 2022"]
[Site "Lublin"]
[Date "2022.06.26"]
[Round "2.24"]
[White "Walewska, Natalia"]
[Black "Jaros, Emilia"]
[Result "0-1"]
[ECO "C12"]
[WhiteElo "1179"]
[BlackElo "1366"]
[Annotator "NA RC"]
[PlyCount "98"]
[EventDate "2022.06.24"]
[EventType "team-tourn"]
[EventCountry "POL"]
[SourceTitle "playchess.com"]
[Source "ChessBase"]
[SourceQuality "1"]
[TimeControl "40/5400+30:1800+30"]

1. e4 {[%emt 0:00:01]} e6 {[%emt 0:00:13]} 2. d4 {[%emt 0:00:21]} d5 {[%emt 0:00:19]} 3. Nc3 {[%emt 0:00:15]} Nf6 {[%emt 0:00:26]} 4. Bg5 {[%emt 0:00:16]} Bb4 {[%emt 0:00:45]} 5. e5 {[%emt 0:04:33]} h6 {[%emt 0:00:42]} 6. exf6 {[%emt 0:01:43]} hxg5 {[%emt 0:00:48]} 7. fxg7 {[%emt 0:00:06]} Rg8 {[%emt 0:00:28]} 8. Nf3 {[%emt 0:00:56]} Qf6 {[%emt 0:04:52]} 9. Qd2 {[%emt 0:04:34]} Qxg7 {[%emt 0:04:03]} 10. Be2 {[%emt 0:02:18]} Nc6 {[%emt 0:01:22]} 11. O-O-O {[%emt 0:01:11]} Bd7 {[%emt 0:01:18]} 12. g3 {[%emt 0:07:03]} O-O-O {[%emt 0:03:13]} 13. h4 {[%emt 0:03:43]} gxh4 {[%emt 0:06:28]} 14. Rxh4 {[%emt 0:00:43]} f6 {[%emt 0:03:19]} 15. Qe3 {[%emt 0:05:48]} Ne7 {[%emt 0:01:56]} 16. Rdh1 {[%emt 0:03:14]} Nf5 {[%emt 0:02:20]} 17. Qd3 {[%emt 0:04:00]} Nxh4 {[%emt 0:02:04]} 18. Nxh4 {[%emt 0:01:00]} Qg5+ {[%emt 0:02:29]} 19. Kb1 {[%emt 0:01:22]} Rh8 {[%emt 0:01:20]} 20. Rd1 {[%emt 0:03:18]} a6 {[%emt 0:05:57]} 21. Qf3 {[%emt 0:06:27]} Be8 {[%emt 0:03:44]} 22. Qd3 {[%emt 0:04:16]} Rh6 {[%emt 0:07:10]} 23. Rf1 {[%emt 0:14:07]} Bg6 {[%emt 0:04:21]} 24. Qd1 {[%emt 0:02:57]} Bh7 {[%emt 0:04:11]} 25. Rh1 {[%emt 0:03:02]} Bxc3 {[%emt 0:01:41]} 26. bxc3 {[%emt 0:00:22]} Rd6 {[%emt 0:02:02]} 27. Ka1 {[%emt 0:03:21]} Rc6 {[%emt 0:04:38]} 28. Qe1 {[%emt 0:02:24]} Bxc2 {[%emt 0:02:31]} 29. Kb2 {[%emt 0:02:20]} Bh7 {[%emt 0:00:51]} 30. Ka1 {[%emt 0:03:10]} Rb6 {[%emt 0:00:37]} 31. f4 {[%emt 0:02:55]} Qg7 {[%emt 0:01:39]} 32. Qf2 {[%emt 0:02:12]} Qf8 {[%emt 0:01:00]} 33. Qe3 {[%emt 0:00:58]} Qa3 {[%emt 0:04:13]} 34. Qd2 {[%emt 0:00:39]} Be4 {[%emt 0:01:01]} 35. Rf1 {[%emt 0:01:21]} c5 {[%emt 0:03:29]} 36. dxc5 {[%emt 0:01:10]} Qxc5 {[%emt 0:00:19]} 37. Bd3 {[%emt 0:00:47]} Rh7 {[%emt 0:04:15]} 38. Bxe4 {[%emt 0:00:37]} dxe4 {[%emt 0:00:18]} 39. Rd1 {[%emt 0:00:30]} Kb8 {[%emt 0:00:58]} 40. Qd8+ {[%emt 0:00:00]} Ka7 {[%emt 0:00:00]} 41. Qd2 {[%emt 0:04:33]} Rc7 {[%emt 0:02:47]} 42. Rc1 {[%emt 0:00:34]} e3 {[%emt 0:02:09]} 43. Qe2 {[%emt 0:01:14]} Qd4 {[%emt 0:03:25]} 44. Qe1 {[%emt 0:01:03]} Qd2 {[%emt 0:01:27]} 45. Qxd2 {[%emt 0:00:36]} exd2 {[%emt 0:00:10]} 46. Rd1 {[%emt 0:00:13]} Rxc3 {[%emt 0:00:10]} 47. Rb1 {[%emt 0:00:24]} Rxb1+ {[%emt 0:00:14]} 48. Kxb1 {[%emt 0:00:06]} d1=Q+ {[%emt 0:00:09]} 49. Kb2 {[%emt 0:00:11]} Qc1# {[%emt 0:00:12]} 0-1

[Event "Polish Youth Ekstraliga 2022"]
[Site "Lublin"]
[Date "2022.06.26"]
[Round "2.25"]
[White "Kazmierowski, Tymon"]
[Black "Poltorak, Sebastian"]
[Result "0-1"]
[ECO "B12"]
[WhiteElo "2020"]
[BlackElo "2322"]
[Annotator "TA"]
[PlyCount "112"]
[EventDate "2022.06.24"]
[EventType "team-tourn"]
[EventCountry "POL"]
[SourceTitle "playchess.com"]
[Source "ChessBase"]
[SourceQuality "1"]
[TimeControl "40/5400+30:1800+30"]

{[%evp 9,112,1,10,4,43,42,37,37,46,44,85,80,80,93,77,40,44,33,32,-8,-16,-43,-16,-47,-48,-49,-34,-66,-16,-22,-50,-129,-117,-153,-131,-135,-119,-134,-130,-120,-139,-244,-175,-173,-183,-184,-182,-199,-193,-435,-433,-434,-422,-478,-418,-678,-405,-405,-405,-408,-258,-369,-293,-264,0,-383,-177,-374,-362,-332,-327,-331,-319,-298,-216,-217,-181,-166,-177,-180,-194,-214,-229,-228,-185,-212,-237,-297,-299,-297,-289,-285,-242,-375,-380,-658,-658,-657,-649,-684,-683,-639,-577,-568,-231]} 1. e4 {[%emt 0:00:02]} c6 {[%emt 0:00:13]} 2. d4 {[%emt 0:00:07]} d5 {[%emt 0:00:05]} 3. e5 {[%emt 0:00:07]} Bf5 {[%emt 0:00:06]} 4. h4 {[%emt 0:00:06]} Qb6 {[%emt 0:00:03]} 5. h5 {[%emt 0:00:17]} h6 {[%emt 0:02:22]} 6. g4 {[%emt 0:00:15] B12: Caro-Kann: Advance Variation.} Bd7 {[%emt 0:00:37]} 7. Nc3 {[%emt 0:01:12]} e6 {[%emt 0:00:08]} 8. Na4 {[%emt 0:03:41] White is slightly better.} Qa5+ {[%emt 0:00:06]} 9. c3 {[%emt 0:00:05] [#]} b5 $146 {[%emt 0:00:22]} ({Predecessor:} 9... c5 10. Nxc5 Bxc5 11. dxc5 Qxc5 12. Be3 Qc7 13. f4 Ne7 14. Nf3 a6 15. Qb3 b5 {1-0 (39) Vitiugov,N (2721)-Popov,V (2528) Jurmala 2016}) 10. Nc5 {[%emt 0:00:41]} Bxc5 {[%emt 0:00:04]} 11. dxc5 {[%emt 0:00:04]} b4 {[%emt 0:00:04]} 12. Qd4 {[%emt 0:06:46]} (12. a3 $5 {[%cal Rc3b4]}) 12... bxc3 {[%emt 0:00:22]} 13. b4 {[%emt 0:03:31]} Qa4 {[%emt 0:04:06]} 14. Qxc3 {[%emt 0:00:53] Black must now prevent Qb3.} (14. Ne2 {feels hotter.} a5 15. a3 axb4 16. Rb1) 14... a5 {[%emt 0:00:19]} 15. Bd2 {[%emt 0:01:41]} Bc8 {[%emt 0:10:28]} 16. Nf3 {[%emt 0:17:39]} axb4 {[%emt 0:13:15]} 17. Qxb4 {[%emt 0:00:09]} Ne7 {[%emt 0:02:09]} 18. Nd4 {[%emt 0:10:59] Against Qc2} Nd7 {[%emt 0:02:04]} ({Better is} 18... Qxb4 $15 19. Bxb4 f6) 19. f4 $11 {[%emt 0:03:24]} Qa7 {[%emt 0:00:28]} 20. Nb3 {[%emt 0:02:48]} (20. Rh3 $15) 20... Ba6 {[%emt 0:03:53]} 21. Qd4 {[%emt 0:07:22]} O-O {[%emt 0:05:19]} 22. Bc3 {[%emt 0:07:15]} Bc4 {[%emt 0:13:15]} 23. Bxc4 {[%emt 0:06:29]} dxc4 {[%emt 0:00:05]} 24. Qxc4 {[%emt 0:00:03]} Nd5 {[%emt 0:00:28]} 25. Rh2 {[%emt 0:09:33]} (25. a4 $17 {might work better.}) 25... Qa4 {[%emt 0:07:49]} 26. Qxa4 {[%emt 0:01:24]} Rxa4 {[%emt 0:00:05]} 27. Bd4 {[%emt 0:00:30]} Nxf4 {[%cal Od7e5] Strongly threatening ...Nxe5!} 28. Rd2 {[%emt 0:00:57]} Nd5 {[%emt 0:03:23]} 29. Kf2 $2 {[%emt 0:05:09]} (29. Re2) 29... f6 $19 {[%emt 0:00:16]} 30. exf6 {[%emt 0:01:00]} e5 {[%emt 0:00:08]} 31. Bb2 {[%emt 0:01:38]} Rxg4 {[%emt 0:00:16]} 32. Re2 {[%emt 0:00:43]} (32. Rf1 $142 N7xf6 33. Ke1) 32... Rxf6+ {[%emt 0:01:59]} 33. Ke1 {[%emt 0:00:05]} Nf4 {[%emt 0:00:48]} 34. Rd2 {[%emt 0:00:57]} Rg1+ {[%emt 0:00:54]} 35. Kf2 {[%emt 0:00:01]} Rg2+ {[%emt 0:03:09]} ({But not} 35... Nh3+ $2 36. Ke3 Rg3+ 37. Ke2 $19) 36. Ke1 {[%emt 0:01:24]} Rg1+ {[%emt 0:03:15]} (36... Rf5 $142 37. Rxg2 Nxg2+ 38. Kd1 Rxh5) 37. Kf2 {[%emt 0:00:03] [#]} Nh3+ {[%emt 0:01:19] Pair of Knights!} (37... Rg5 $142 $1 38. Ke1 Nd5) 38. Ke3 $2 {[%emt 0:02:09]} (38. Ke2 {is the only way for White.}) 38... Rg3+ {[%emt 0:00:09]} 39. Ke2 {[%emt 0:00:05]} Nf4+ {[%emt 0:03:10]} 40. Kd1 {[%emt 0:00:00]} Nd5 {[%emt 0:00:00]} 41. Rc1 {[%emt 0:03:06]} Kf7 {[%emt 0:23:24]} 42. Kc2 {[%emt 0:01:33]} Nb4+ {[%emt 0:02:24]} 43. Kb1 {[%emt 0:00:07] [#]} Nd3 $1 {[%emt 0:00:12]} 44. Rcd1 {[%emt 0:04:13]} Rff3 {[%emt 0:00:07]} 45. Na5 {[%emt 0:01:36]} N7xc5 {[%emt 0:01:47]} 46. Nxc6 {[%emt 0:01:22]} e4 {[%emt 0:00:15][%cal Be5e4,Be4d3][%mdl 32]} 47. Bd4 {[%emt 0:03:55]} Rf5 {[%emt 0:01:57]} 48. Re2 {[%emt 0:05:44]} Rxh5 {[%emt 0:02:50]} 49. Rf1+ {[%emt 0:02:07]} Ke6 {[%emt 0:03:23]} 50. Nb4 {[%emt 0:02:47]} Kd6 {[%emt 0:05:02]} (50... Nxb4 $2 51. Bxc5 Nxa2 52. Rxe4+ Kd5 53. Re3 Rxe3 54. Bxe3) 51. Nxd3 {[%emt 0:01:21]} (51. a3 {was necessary.}) 51... exd3 {[%emt 0:00:11]} ({Don't blunder} 51... Nxd3 $2 52. Rxe4 Rb5+ 53. Ka1 $19) 52. Re3 {[%emt 0:00:36]} (52. Bxc5+ Kxc5 53. Re7) 52... Rxe3 {[%emt 0:01:39] Black is clearly winning.} 53. Bxe3 {[%emt 0:00:05]} Ne4 {[%emt 0:00:26]} 54. Rf8 {[%emt 0:01:53]} Rh1+ {[%emt 0:00:15]} 55. Kb2 {[%emt 0:00:05]} d2 {[%emt 0:00:48]} 56. Bxd2 {[%emt 0:00:13]} Rh2 {[%emt 0:00:03] Weighted Error Value: White=0.44/Black=0.30} ({Don't go for} 56... Nxd2 $2 57. Rd8+ Kc5 58. Rxd2 $19) 0-1

[Event "Polish Youth Ekstraliga 2022"]
[Site "Lublin"]
[Date "2022.06.26"]
[Round "2.26"]
[White "Meers, Hubert"]
[Black "Grzadka, Artur"]
[Result "1-0"]
[ECO "B13"]
[WhiteElo "2013"]
[BlackElo "1718"]
[Annotator "NA RC"]
[PlyCount "75"]
[EventDate "2022.06.24"]
[EventType "team-tourn"]
[EventCountry "POL"]
[SourceTitle "playchess.com"]
[Source "ChessBase"]
[SourceQuality "1"]
[TimeControl "40/5400+30:1800+30"]

1. e4 {[%emt 0:00:01]} c6 {[%emt 0:00:05]} 2. d4 {[%emt 0:00:03]} d5 {[%emt 0:00:04]} 3. exd5 {[%emt 0:00:03]} cxd5 {[%emt 0:00:07]} 4. Bd3 {[%emt 0:00:02]} Nc6 {[%emt 0:00:11]} 5. c3 {[%emt 0:00:02]} g6 {[%emt 0:00:09]} 6. Nf3 {[%emt 0:00:35]} Bf5 {[%emt 0:00:36]} 7. Bxf5 {[%emt 0:00:12]} gxf5 {[%emt 0:00:05]} 8. Bg5 {[%emt 0:00:05]} Qc7 {[%emt 0:02:06]} 9. O-O {[%emt 0:00:06]} e6 {[%emt 0:02:23]} 10. c4 {[%emt 0:00:02]} Nce7 {[%emt 0:04:55]} 11. c5 {[%emt 0:03:09]} Bg7 {[%emt 0:04:13]} 12. Nc3 {[%emt 0:02:08]} a6 {[%emt 0:00:36]} 13. Qd2 {[%emt 0:05:36]} Ng6 {[%emt 0:11:49]} 14. Rfe1 {[%emt 0:04:25]} N8e7 15. b4 {[%emt 0:00:34]} O-O {[%emt 0:02:22]} 16. h4 {[%emt 0:01:09]} Nc6 {[%emt 0:05:04]} 17. h5 {[%emt 0:04:55]} Nge7 {[%emt 0:00:10]} 18. Bh6 {[%emt 0:01:09]} f4 {[%emt 0:16:09]} 19. Bxf4 {[%emt 0:01:57]} Qd8 {[%emt 0:01:42]} 20. Bd6 {[%emt 0:02:53]} Re8 {[%emt 0:04:02]} 21. b5 {[%emt 0:02:00]} axb5 {[%emt 0:04:09]} 22. Nxb5 {[%emt 0:00:02]} Nf5 {[%emt 0:02:59]} 23. Nc7 {[%emt 0:21:20]} Ncxd4 {[%emt 0:03:01]} 24. Nxd4 {[%emt 0:00:29]} Nxd4 {[%emt 0:06:03]} 25. Nxa8 {[%emt 0:01:18]} Qxa8 {[%emt 0:00:29]} 26. h6 {[%emt 0:03:47]} Bf6 {[%emt 0:01:27]} 27. Be5 {[%emt 0:00:31]} Bxe5 {[%emt 0:03:43]} 28. Rxe5 {[%emt 0:00:40]} Nb3 {[%emt 0:07:33]} 29. Qg5+ {[%emt 0:00:06]} Kf8 {[%emt 0:00:27]} 30. Qg7+ {[%emt 0:05:45]} Ke7 {[%emt 0:00:06]} 31. Rxe6+ {[%emt 0:00:16]} Kxe6 {[%emt 0:01:56]} 32. axb3 {[%emt 0:00:11]} Qd8 {[%emt 0:01:40]} 33. Re1+ {[%emt 0:00:07]} Kd7 {[%emt 0:00:11]} 34. Qxf7+ {[%emt 0:00:04]} Re7 {[%emt 0:00:09]} 35. Qxd5+ {[%emt 0:00:04]} Kc7 {[%emt 0:00:07]} 36. Qxd8+ {[%emt 0:00:03]} Kxd8 {[%emt 0:00:10]} 37. Rxe7 {[%emt 0:00:02]} Kxe7 {[%emt 0:00:10]} 38. g4 {[%emt 0:00:01]} 1-0

[Event "Polish Youth Ekstraliga 2022"]
[Site "Lublin"]
[Date "2022.06.26"]
[Round "2.27"]
[White "Przybylski, Jan"]
[Black "Zielonka, Adam"]
[Result "1/2-1/2"]
[ECO "B46"]
[WhiteElo "1694"]
[BlackElo "1988"]
[Annotator "RC"]
[PlyCount "133"]
[EventDate "2022.06.24"]
[EventType "team-tourn"]
[EventCountry "POL"]
[SourceTitle "playchess.com"]
[Source "ChessBase"]
[SourceQuality "1"]
[TimeControl "40/5400+30:1800+30"]

1. e4 {[%emt 0:00:03]} c5 {[%emt 0:00:01]} 2. Nf3 {[%emt 0:00:09]} e6 {[%emt 0:00:04]} 3. d4 {[%emt 0:00:06]} cxd4 {[%emt 0:00:05]} 4. Nxd4 {[%emt 0:00:04]} Nc6 {[%emt 0:00:18]} 5. Nc3 {[%emt 0:00:11]} a6 {[%emt 0:00:05]} 6. Nxc6 {[%emt 0:00:35]} bxc6 {[%emt 0:00:07]} 7. e5 {[%emt 0:00:07]} Qc7 {[%emt 0:00:11]} 8. f4 {[%emt 0:00:34]} d5 {[%emt 0:00:11]} 9. exd6 {[%emt 0:00:20]} Bxd6 {[%emt 0:00:06]} 10. Ne4 {[%emt 0:00:25]} Be7 {[%emt 0:00:03]} 11. Bd3 {[%emt 0:02:55]} Nf6 {[%emt 0:00:13]} 12. O-O {[%emt 0:01:05]} O-O {[%emt 0:00:31]} 13. c4 Bb7 {[%emt 0:02:44]} 14. Qc2 {[%emt 0:07:30]} h6 {[%emt 0:00:28]} 15. Be3 {[%emt 0:05:54]} c5 {[%emt 0:01:59]} 16. Rad1 {[%emt 0:03:27]} Rfd8 17. b3 {[%emt 0:03:20]} Qc6 {[%emt 0:04:05]} 18. Nxf6+ {[%emt 0:04:52]} Bxf6 {[%emt 0:00:07]} 19. Rf2 {[%emt 0:01:01]} Rd6 {[%emt 0:07:25]} 20. Bh7+ Kh8 {[%emt 0:00:18]} 21. Rxd6 {[%emt 0:03:43]} Qxd6 {[%emt 0:00:03]} 22. Be4 {[%emt 0:00:59]} Bxe4 {[%emt 0:02:32]} 23. Qxe4 {[%emt 0:07:12]} Rd8 {[%emt 0:02:00]} 24. Rd2 {[%emt 0:02:22]} Qb6 {[%emt 0:00:07]} 25. Rxd8+ {[%emt 0:10:09]} Bxd8 {[%emt 0:02:27]} 26. Qe5 {[%emt 0:08:55]} Be7 {[%emt 0:01:30]} 27. h3 {[%emt 0:02:23]} Bd6 {[%emt 0:02:30]} 28. Qc3 {[%emt 0:01:20]} Kg8 {[%emt 0:02:11]} 29. Kh1 {[%emt 0:05:06]} Be7 {[%emt 0:04:13]} 30. Qd2 {[%emt 0:08:13]} Qc6 {[%emt 0:01:12]} 31. Qd3 {[%emt 0:01:08]} f5 {[%emt 0:08:55]} 32. a3 {[%emt 0:01:34]} Kf7 {[%emt 0:00:18]} 33. Bd2 {[%emt 0:00:58]} Qb7 {[%emt 0:02:57]} 34. Kg1 {[%emt 0:03:54]} g5 {[%emt 0:03:56]} 35. Kf2 {[%emt 0:01:00]} Bf6 {[%emt 0:02:06]} 36. Qf3 {[%emt 0:03:06]} Qxf3+ {[%emt 0:03:32]} 37. Kxf3 {[%emt 0:00:16]} e5 {[%emt 0:23:47]} 38. fxe5 {[%emt 0:00:57]} Bxe5 {[%emt 0:00:04]} 39. g4 {[%emt 0:00:48]} Bb2 {[%emt 0:02:55]} 40. gxf5 {[%emt 0:00:00]} Bxa3 {[%emt 0:00:00]} 41. Ke4 {[%emt 0:02:59]} Ke7 42. Be3 {[%emt 0:01:39]} Kf6 {[%emt 0:08:22]} 43. Bd2 {[%emt 0:00:57]} Bb2 {[%emt 0:00:50]} 44. Ba5 {[%emt 0:00:26]} Ke7 {[%emt 0:02:20]} 45. Bc7 {[%emt 0:00:40]} h5 {[%emt 0:01:08]} 46. Be5 {[%emt 0:00:55]} Bxe5 {[%emt 0:00:49]} 47. Kxe5 {[%emt 0:00:02]} Kf7 {[%emt 0:00:08]} 48. b4 {[%emt 0:14:59]} cxb4 {[%emt 0:01:00]} 49. c5 {[%emt 0:00:01]} b3 {[%emt 0:00:11]} 50. c6 {[%emt 0:00:01]} b2 {[%emt 0:00:05]} 51. c7 {[%emt 0:00:05]} b1=Q 52. c8=Q {[%emt 0:00:06]} Qb5+ {[%emt 0:06:34]} 53. Kd6 {[%emt 0:01:10]} Qb6+ {[%emt 0:02:53]} 54. Ke5 {[%emt 0:00:22]} Qf6+ {[%emt 0:00:37]} 55. Ke4 {[%emt 0:00:33]} Qe7+ {[%emt 0:00:53]} 56. Kd5 {[%emt 0:00:30]} Kf6 {[%emt 0:05:10]} 57. Qxa6+ {[%emt 0:07:08]} Kxf5 {[%emt 0:00:20]} 58. Qf1+ {[%emt 0:00:11]} Kg6 {[%emt 0:00:06]} 59. Qd3+ {[%emt 0:01:57]} Kg7 {[%emt 0:01:37]} 60. Qc3+ {[%emt 0:00:51]} Qf6 {[%emt 0:00:11]} 61. Qc8 {[%emt 0:01:05]} Qf7+ {[%emt 0:00:52]} 62. Ke5 {[%emt 0:00:47]} Qe7+ 63. Kf5 {[%emt 0:00:23]} Qf6+ {[%emt 0:00:44]} 64. Ke4 {[%emt 0:00:08]} Kh6 {[%emt 0:00:39]} 65. Ke3 {[%emt 0:00:28]} Kg6 {[%emt 0:03:08]} 66. Qc2+ {[%emt 0:00:30]} Kh6 {[%emt 0:02:47]} 67. Ke4 1/2-1/2

[Event "Polish Youth Ekstraliga 2022"]
[Site "Lublin"]
[Date "2022.06.26"]
[Round "2.28"]
[White "Liskiewicz, Jakub"]
[Black "Terkiewicz, Bruno"]
[Result "0-1"]
[ECO "E41"]
[WhiteElo "1839"]
[BlackElo "1320"]
[Annotator "NA RC"]
[PlyCount "72"]
[EventDate "2022.06.24"]
[EventType "team-tourn"]
[EventCountry "POL"]
[SourceTitle "playchess.com"]
[Source "ChessBase"]
[SourceQuality "1"]
[TimeControl "40/5400+30:1800+30"]

1. d4 {[%emt 0:00:02]} Nf6 {[%emt 0:00:01]} 2. c4 {[%emt 0:00:07]} e6 {[%emt 0:00:01]} 3. Nc3 {[%emt 0:00:06]} Bb4 {[%emt 0:00:02]} 4. e3 {[%emt 0:00:08]} Bxc3+ {[%emt 0:00:03]} 5. bxc3 {[%emt 0:00:07]} c5 {[%emt 0:00:04]} 6. Bd3 {[%emt 0:01:29]} d6 {[%emt 0:00:06]} 7. Nf3 {[%emt 0:01:53]} Nc6 {[%emt 0:00:06]} 8. O-O {[%emt 0:01:29]} O-O {[%emt 0:00:07]} 9. d5 {[%emt 0:11:30]} Ne7 {[%emt 0:08:02]} 10. dxe6 {[%emt 0:01:49]} Bxe6 {[%emt 0:01:21]} 11. Qc2 {[%emt 0:00:29]} h6 {[%emt 0:00:26]} 12. Rd1 {[%emt 0:02:51]} Qc7 {[%emt 0:00:23]} 13. h3 {[%emt 0:01:59]} d5 {[%emt 0:03:53]} 14. cxd5 {[%emt 0:00:14]} Nexd5 {[%emt 0:00:05]} 15. a3 {[%emt 0:03:23]} Ne7 {[%emt 0:12:32]} 16. c4 {[%emt 0:01:20]} Nc6 {[%emt 0:02:11]} 17. Bb2 {[%emt 0:01:13]} Nd7 {[%emt 0:00:34]} 18. Bh7+ {[%emt 0:03:34]} Kh8 {[%emt 0:00:07]} 19. Qc3 {[%emt 0:01:00]} f6 {[%emt 0:02:30]} 20. Bc2 {[%emt 0:00:11]} Nde5 {[%emt 0:01:26]} 21. Nh4 {[%emt 0:05:34]} Rfd8 {[%emt 0:04:26]} 22. Rd5 {[%emt 0:19:15]} Ne7 {[%emt 0:04:11]} 23. f4 {[%emt 0:12:51]} Nxc4 {[%emt 0:39:34]} 24. Rh5 {[%emt 0:02:46]} Nxb2 {[%emt 0:00:09]} 25. Rxh6+ {[%emt 0:07:41]} Kg8 {[%emt 0:00:05]} 26. Bh7+ {[%emt 0:00:38]} Kf7 {[%emt 0:00:16]} 27. f5 {[%emt 0:02:39]} gxh6 {[%emt 0:03:09]} 28. fxe6+ {[%emt 0:00:21]} Kg7 {[%emt 0:00:46]} 29. Qc2 {[%emt 0:05:58]} Qe5 {[%emt 0:01:48]} 30. Ng6 {[%emt 0:01:16]} Qxe3+ {[%emt 0:01:04]} 31. Kh1 {[%emt 0:00:06]} Qxe6 {[%emt 0:00:18]} 32. Rb1 {[%emt 0:03:06]} Rd1+ {[%emt 0:00:48]} 33. Rxd1 {[%emt 0:00:08]} Nxd1 {[%emt 0:00:05]} 34. Nxe7 {[%emt 0:03:03]} Qxe7 {[%emt 0:00:44]} 35. Qg6+ {[%emt 0:00:06]} Kh8 {[%emt 0:00:05]} 36. Bg8 {[%emt 0:00:07]} Qg7 {[%emt 0:01:10]} 0-1

[Event "Polish Youth Ekstraliga 2022"]
[Site "Lublin"]
[Date "2022.06.26"]
[Round "2.29"]
[White "Bukala, Weronika"]
[Black "Zabrzanska, Weronika"]
[Result "1-0"]
[ECO "C77"]
[WhiteElo "1827"]
[BlackElo "1882"]
[Annotator "NA RC"]
[PlyCount "65"]
[EventDate "2022.06.24"]
[EventType "team-tourn"]
[EventCountry "POL"]
[SourceTitle "playchess.com"]
[Source "ChessBase"]
[SourceQuality "1"]
[TimeControl "40/5400+30:1800+30"]

1. e4 {[%emt 0:00:03]} e5 {[%emt 0:00:29]} 2. Nf3 {[%emt 0:00:33]} Nc6 {[%emt 0:00:06]} 3. Bb5 {[%emt 0:00:10]} a6 {[%emt 0:00:12]} 4. Ba4 {[%emt 0:00:06]} Nf6 {[%emt 0:00:12]} 5. d3 {[%emt 0:00:09]} b5 {[%emt 0:00:55]} 6. Bb3 {[%emt 0:00:07]} Bc5 {[%emt 0:00:05]} 7. c3 {[%emt 0:01:31]} d6 {[%emt 0:00:38]} 8. O-O {[%emt 0:00:48]} O-O {[%emt 0:04:45]} 9. Nbd2 {[%emt 0:04:39]} h6 {[%emt 0:14:17]} 10. h3 {[%emt 0:00:26]} Ba7 {[%emt 0:02:52]} 11. Re1 {[%emt 0:00:49]} Ne7 {[%emt 0:04:58]} 12. Nf1 {[%emt 0:07:27]} Ng6 {[%emt 0:04:13]} 13. Ng3 {[%emt 0:03:02]} Nh7 {[%emt 0:03:04]} 14. d4 {[%emt 0:11:13]} Re8 {[%emt 0:04:58]} 15. Bd5 {[%emt 0:07:33]} Rb8 {[%emt 0:01:14]} 16. a4 {[%emt 0:01:16]} b4 {[%emt 0:03:48]} 17. Qb3 {[%emt 0:09:30]} Qe7 {[%emt 0:22:58]} 18. cxb4 {[%emt 0:08:37]} exd4 {[%emt 0:03:19]} 19. Nf5 {[%emt 0:15:58]} Qf6 {[%emt 0:03:48]} 20. N5xd4 {[%emt 0:01:37]} Ne5 {[%emt 0:02:36]} 21. Nc6 {[%emt 0:05:43]} Nxc6 {[%emt 0:01:33]} 22. Bxc6 {[%emt 0:00:05]} Re5 {[%emt 0:00:54]} 23. Be3 {[%emt 0:03:57]} Bxe3 {[%emt 0:01:18]} 24. Qxe3 {[%emt 0:02:46]} Rh5 {[%emt 0:00:49]} 25. e5 {[%emt 0:07:14]} Qg6 {[%emt 0:06:37]} 26. Be4 {[%emt 0:00:33]} Qe6 {[%emt 0:02:07]} 27. exd6 {[%emt 0:01:58]} Ng5 {[%emt 0:01:21]} 28. Nxg5 {[%emt 0:01:24]} Rxg5 {[%emt 0:00:19]} 29. dxc7 {[%emt 0:00:37]} Rxb4 {[%emt 0:01:21]} 30. Rad1 {[%emt 0:00:28]} g6 {[%emt 0:02:04]} 31. Qc3 {[%emt 0:01:22]} Kh7 {[%emt 0:03:25]} 32. Rd8 {[%emt 0:01:55]} Qe5 {[%emt 0:00:51]} 33. Bxg6+ {[%emt 0:00:41]} 1-0